fUST/lending_fUST_20251121
["ID","MTS","AMOUNT","RATE_DAILY","PERIOD"]
[394516728,1763659744868,281.779002,0.00039107,50]
[394516729,1763659745353,281.779002,0.00039107,50]
[394516730,1763659745650,281.779002,0.00039107,50]
[394516731,1763659746019,281.779002,0.00039107,50]
[394516732,1763659746199,1081.94196822,5.743e-05,2]
[394516733,1763659746596,281.779002,0.00039107,50]
[394516734,1763659746871,1081.94196822,5.743e-05,2]
[394516735,1763659747082,281.779002,0.00039107,50]
[394516736,1763659747553,1081.94196822,5.743e-05,2]
[394516737,1763659747603,1081.94196822,5.743e-05,2]
[394516738,1763659747637,1081.94196822,5.743e-05,2]
[394516739,1763659747685,1081.94196822,5.743e-05,2]
[394516740,1763659747725,1081.94196822,5.743e-05,2]
[394516741,1763659747769,1081.94196822,5.743e-05,2]
[394516742,1763659747827,1081.94196822,5.743e-05,2]
[394516743,1763659747866,203.34267487,5.743e-05,2]
[394516744,1763659747892,878.59929335,5.743e-05,2]
[394516745,1763659747930,281.779002,0.00039107,50]
[394516746,1763659747967,1081.94196822,5.743e-05,2]
[394516747,1763659748010,1081.94196822,5.743e-05,2]
[394516748,1763659748065,1081.94196822,5.743e-05,2]
[394516749,1763659748114,1081.94196822,5.743e-05,2]
[394516750,1763659748161,1081.94196822,5.743e-05,2]
[394516751,1763659748204,1081.94196822,5.743e-05,2]
[394516752,1763659748245,1081.94196822,5.743e-05,2]
[394516753,1763659748288,1081.94196822,5.743e-05,2]
[394516754,1763659748335,465.87496089,5.743e-05,2]
[394516755,1763659748409,281.779002,0.00039107,50]
[394516756,1763659748596,281.779002,0.00039107,50]
[394516757,1763659748770,281.779002,0.00039107,50]
[394516758,1763659749584,281.77901,0.00039107,50]
[394516759,1763659757501,286.413485,0.00039107,50]
[394516760,1763659757868,286.413485,0.00039107,50]
[394516761,1763659758237,286.413485,0.00039107,50]
[394516762,1763659758618,286.413485,0.00039107,50]
[394516763,1763659759303,286.413485,0.00039107,50]
[394516764,1763659759631,286.413485,0.00039107,50]
[394516765,1763659760099,286.413485,0.00039107,50]
[394516766,1763659760489,286.413485,0.00039107,50]
[394516767,1763659760937,286.413485,0.00039107,50]
[394516768,1763659761365,286.413485,0.00039107,50]
[394516769,1763659761803,286.413485,0.00039107,50]
[394516770,1763659762298,286.413485,0.00039107,50]
[394516771,1763659762620,286.413485,0.00039107,50]
[394516773,1763659763132,286.413485,0.00039107,50]
[394516774,1763659764004,286.413485,0.00039107,50]
[394516775,1763659764487,286.413485,0.00039107,50]
[394516776,1763659764820,286.413485,0.00039107,50]
[394516777,1763659765635,286.413485,0.00039107,50]
[394516778,1763659766116,286.413485,0.00039107,50]
[394516779,1763659766463,286.413492,0.00039107,50]
[394516780,1763659771470,594.185502,0.00039107,50]
[394516781,1763659771936,594.185502,0.00039107,50]
[394516782,1763659772440,594.185502,0.00039107,50]
[394516783,1763659772798,594.185502,0.00039107,50]
[394516784,1763659773130,594.185502,0.00039107,50]
[394516785,1763659773160,150.0,0.00013642,30]
[394516786,1763659773438,594.185502,0.00039107,50]
[394516787,1763659773561,150.0,0.00014883,30]
[394516788,1763659774246,594.185502,0.00039107,50]
[394516789,1763659774594,594.185502,0.00039107,50]
[394516790,1763659775084,594.185502,0.00039107,50]
[394516791,1763659775484,594.185502,0.00039107,50]
[394516792,1763659775847,594.185502,0.00039107,50]
[394516793,1763659776198,594.185502,0.00039107,50]
[394516794,1763659776645,385.98755,0.00039107,50]
[394516795,1763659776835,594.185502,0.00039107,50]
[394516796,1763659777081,385.98755,0.00039107,50]
[394516797,1763659777408,385.98755,0.00039107,50]
[394516798,1763659777889,594.185502,0.00039107,50]
[394516799,1763659778215,385.98755,0.00039107,50]
[394516800,1763659778266,594.185502,0.00039107,50]
[394516801,1763659778602,594.185502,0.00039107,50]
[394516802,1763659778727,385.98755,0.00039107,50]
[394516803,1763659778882,151.0,0.00039107,50]
[394516804,1763659779050,385.98755,0.00039107,50]
[394516805,1763659779105,594.185502,0.00039107,50]
[394516806,1763659779236,151.0,0.00039107,50]
[394516807,1763659779539,385.98755,0.00039107,50]
[394516808,1763659779581,594.185502,0.00039107,50]
[394516809,1763659779684,151.0,0.00039107,50]
[394516810,1763659779886,594.185502,0.00039107,50]
[394516811,1763659779965,385.98755,0.00039107,50]
[394516812,1763659780027,500.0,0.00039107,30]
[394516813,1763659780111,151.0,0.00039107,50]
[394516814,1763659780200,594.185512,0.00039107,50]
[394516815,1763659780329,500.0,0.00039107,30]
[394516816,1763659780472,385.98755,0.00039107,50]
[394516817,1763659780540,151.0,0.00039107,50]
[394516818,1763659780592,500.0,0.00039107,30]
[394516819,1763659780840,385.98755,0.00039107,50]
[394516820,1763659780897,151.0,0.00039107,50]
[394516821,1763659780978,500.0,0.00039107,30]
[394516822,1763659781251,500.0,0.00039107,30]
[394516823,1763659781283,151.0,0.00039107,50]
[394516824,1763659781554,500.0,0.00039107,30]
[394516825,1763659781639,151.0,0.00039107,50]
[394516826,1763659781715,500.0,0.00039107,30]
[394516827,1763659781748,385.98755,0.00039107,50]
[394516828,1763659782041,151.0,0.00039107,50]
[394516829,1763659782301,641.59187147,0.00039107,30]
[394516830,1763659782383,225.683307,0.00039107,50]
[394516831,1763659782576,385.98755,0.00039107,50]
[394516832,1763659783077,385.98755,0.00039107,50]
[394516833,1763659783464,385.98755,0.00039107,50]
[394516834,1763659784358,385.98755,0.00039107,50]
[394516835,1763659785327,385.98755,0.00039107,50]
[394516836,1763659785524,385.98755,0.00039107,50]
[394516837,1763659786009,385.98755,0.00039107,50]
[394516838,1763659786337,385.98755,0.00039107,50]
[394516839,1763659787021,385.987552,0.00039107,50]
[394516841,1763659796612,500.0,0.00039107,30]
[394516842,1763659797412,532.87770209,0.00039107,30]
[394516843,1763659813001,500.0,0.00039107,30]
[394516846,1763659813273,500.0,0.00039107,30]
[394516848,1763659817167,503.57038435,0.00039107,30]
[394516850,1763659819889,151.0,0.00039107,50]
[394516851,1763659820403,151.0,0.00039107,50]
[394516852,1763659820765,151.0,0.00039107,50]
[394516853,1763659820913,151.0,0.00039107,50]
[394516854,1763659821211,151.0,0.00039107,50]
[394516855,1763659821258,151.0,0.00039107,50]
[394516856,1763659821609,151.0,0.00039107,50]
[394516857,1763659821665,171.506002,0.00039107,50]
[394516858,1763659821985,151.0,0.00039107,50]
[394516859,1763659822441,151.0,0.00039107,50]
[394516860,1763659822540,153.620704,0.00039107,50]
[394516861,1763659822943,151.0,0.00039107,50]
[394516862,1763659823140,151.0,0.00039107,50]
[394516863,1763659823885,151.0,0.00039107,50]
[394516864,1763659824391,151.0,0.00039107,50]
[394516866,1763659824698,151.0,0.00039107,50]
[394516867,1763659825130,151.0,0.00039107,50]
[394516868,1763659825472,151.0,0.00039107,50]
[394516869,1763659825759,151.0,0.00039107,50]
[394516870,1763659826971,151.0,0.00039042,50]
[394516871,1763659827279,151.0,0.00039042,50]
[394516872,1763659827624,500.0,0.00039042,30]
[394516873,1763659827731,151.0,0.00039042,50]
[394516874,1763659828037,176.101017,0.00039042,50]
[394516875,1763659828260,500.0,0.00039042,30]
[394516876,1763659828559,500.0,0.00039042,30]
[394516877,1763659828883,500.0,0.00039042,30]
[394516878,1763659829154,500.0,0.00039042,30]
[394516879,1763659829429,500.0,0.00039042,30]
[394516880,1763659829821,500.0,0.00039042,30]
[394516881,1763659830064,500.0,0.00039042,30]
[394516882,1763659830674,500.0,0.00039042,30]
[394516883,1763659830929,500.0,0.00039042,30]
[394516884,1763659831190,500.0,0.00039042,120]
[394516887,1763659831452,500.0,0.00039042,120]
[394516911,1763659831720,500.0,0.00039042,120]
[394516929,1763659831984,500.0,0.00039042,120]
[394517001,1763659832880,500.0,0.00039042,120]
[394517002,1763659832915,372.195855,0.00039042,50]
[394517003,1763659833145,500.0,0.00039042,120]
[394517004,1763659833213,372.195855,0.00039042,50]
[394517005,1763659833448,500.0,0.00039042,120]
[394517006,1763659833752,372.195855,0.00039042,50]
[394517007,1763659833853,500.0,0.00039042,30]
[394517008,1763659834010,500.0,0.00039042,30]
[394517009,1763659834257,500.0,0.00039042,30]
[394517010,1763659834320,513.286472,0.00039042,120]
[394517011,1763659834424,372.195855,0.00039042,50]
[394517012,1763659834547,500.0,0.00039042,30]
[394517013,1763659834757,372.195855,0.00039042,50]
[394517014,1763659834817,500.0,0.00039042,30]
[394517015,1763659835078,372.195855,0.00039042,50]
[394517016,1763659835413,372.195855,0.00039042,50]
[394517017,1763659835446,151.0,0.00039042,50]
[394517018,1763659835851,151.0,0.00039042,50]
[394517019,1763659835997,372.195855,0.00039042,50]
[394517020,1763659836173,151.0,0.00039042,50]
[394517021,1763659836356,372.195855,0.00039042,50]
[394517022,1763659836644,372.195855,0.00039042,50]
[394517023,1763659836691,151.0,0.00039042,50]
[394517024,1763659836969,372.195855,0.00039042,50]
[394517025,1763659837002,159.114267,0.00039042,50]
[394517031,1763659837411,372.195855,0.00039042,50]
[394517032,1763659837424,-300.0,5.742e-05,2]
[394517033,1763659837434,-1200.0,5.742e-05,2]
[394517034,1763659837445,-500.0,5.742e-05,2]
[394517035,1763659837455,-616.06700733,5.743e-05,2]
[394517038,1763659837466,-1081.94196822,5.743e-05,2]
[394517040,1763659837475,-1081.94196822,5.743e-05,2]
[394517041,1763659837485,-1081.94196822,5.743e-05,2]
[394517042,1763659837495,-1081.94196822,5.743e-05,2]
[394517043,1763659837505,-1081.94196822,5.743e-05,2]
[394517044,1763659837515,-1081.94196822,5.743e-05,2]
[394517045,1763659837525,-1081.94196822,5.743e-05,2]
[394517046,1763659837535,-1081.94196822,5.743e-05,2]
[394517047,1763659837546,-1081.94196822,5.743e-05,2]
[394517049,1763659837555,-1081.94196822,5.743e-05,2]
[394517050,1763659837565,-1081.94196822,5.743e-05,2]
[394517052,1763659837575,-1081.94196822,5.743e-05,2]
[394517065,1763659837793,-1081.94196822,5.743e-05,2]
[394517067,1763659837803,-1081.94196822,5.743e-05,2]
[394517068,1763659837813,-1081.94196822,5.743e-05,2]
[394517070,1763659837823,-1081.94196822,5.743e-05,2]
[394517071,1763659837836,-1081.94196822,5.743e-05,2]
[394517072,1763659837846,-1081.94196822,5.743e-05,2]
[394517073,1763659837856,-1081.94196822,5.743e-05,2]
[394517074,1763659837866,-1081.94196822,5.743e-05,2]
[394517075,1763659837875,-1081.94196822,5.743e-05,2]
[394517076,1763659837884,-1081.94196822,5.743e-05,2]
[394517077,1763659837895,-1081.94196822,5.743e-05,2]
[394517078,1763659837905,-1081.94196822,5.743e-05,2]
[394517079,1763659837915,-1081.94196822,5.743e-05,2]
[394517080,1763659837924,-1081.94196822,5.743e-05,2]
[394517081,1763659837933,-1081.94196822,5.743e-05,2]
[394517083,1763659837943,-1081.94196822,5.743e-05,2]
[394517084,1763659837953,-1081.94196822,5.743e-05,2]
[394517085,1763659837962,-1081.94196822,5.743e-05,2]
[394517086,1763659837971,-1081.94196822,5.743e-05,2]
[394517087,1763659837980,-1081.94196822,5.743e-05,2]
[394517089,1763659837990,-1081.94196822,5.743e-05,2]
[394517091,1763659837999,-1081.94196822,5.743e-05,2]
[394517093,1763659838009,-1081.94196822,5.743e-05,2]
[394517095,1763659838018,-1081.94196822,5.743e-05,2]
[394517097,1763659838028,-1081.94196822,5.743e-05,2]
[394517098,1763659838039,-1081.94196822,5.743e-05,2]
[394517099,1763659838050,-1081.94196822,5.743e-05,2]
[394517100,1763659838060,-1081.94196822,5.743e-05,2]
[394517101,1763659838070,-1142.04985535,5.743e-05,2]
[394517102,1763659838080,-1142.04985535,5.743e-05,2]
[394517103,1763659838092,-1142.04985535,5.743e-05,2]
[394517104,1763659838101,-1142.04985535,5.743e-05,2]
[394517105,1763659838111,-1142.04985535,5.743e-05,2]
[394517106,1763659838122,-1142.04985535,5.743e-05,2]
[394517107,1763659838132,-1142.04985535,5.743e-05,2]
[394517108,1763659838143,-1142.04985535,5.743e-05,2]
[394517109,1763659838153,-1142.04985535,5.743e-05,2]
[394517110,1763659838163,-1142.04985535,5.743e-05,2]
[394517111,1763659838173,-1142.04985535,5.743e-05,2]
[394517112,1763659838183,-1142.04985535,5.743e-05,2]
[394517113,1763659838194,-1142.04985535,5.743e-05,2]
[394517114,1763659838204,-1142.04985535,5.743e-05,2]
[394517115,1763659838214,-1142.04985535,5.743e-05,2]
[394517116,1763659838224,-1142.04985535,5.743e-05,2]
[394517117,1763659838234,-1142.04985535,5.743e-05,2]
[394517118,1763659838244,-1142.04985535,5.743e-05,2]
[394517119,1763659838255,-1142.04985535,5.743e-05,2]
[394517120,1763659838266,-1142.04985535,5.743e-05,2]
[394517121,1763659838276,-1142.04985535,5.743e-05,2]
[394517122,1763659838285,-1142.04985535,5.743e-05,2]
[394517123,1763659838295,-1142.04985535,5.743e-05,2]
[394517124,1763659838305,-1142.04985535,5.743e-05,2]
[394517125,1763659838315,-1142.04985535,5.743e-05,2]
[394517126,1763659838324,-1142.04985535,5.743e-05,2]
[394517127,1763659838336,-601.07887125,5.743e-05,2]
[394517128,1763659838346,-484663.36995312,5.744e-05,2]
[394517129,1763659838359,-151450.14078803,5.744e-05,2]
[394517130,1763659838375,-2526.81547086,5.744e-05,2]
[394517131,1763659838417,500.0,0.00039042,30]
[394517132,1763659838455,372.195855,0.00039042,50]
[394517133,1763659838468,-520.64784018,5.744e-05,2]
[394517134,1763659838480,-4717.75764161,5.744e-05,2]
[394517135,1763659838492,-4176.96893236,5.744e-05,2]
[394517136,1763659838503,-356.87099803,5.744e-05,2]
[394517137,1763659838515,-592.75091421,5.744e-05,2]
[394517138,1763659838527,-2694.248208,5.744e-05,2]
[394517139,1763659838539,-479.02910092,5.744e-05,2]
[394517140,1763659838550,-955.22253843,5.744e-05,2]
[394517141,1763659838561,-1020.48504317,5.744e-05,2]
[394517142,1763659838572,-2329.95344942,5.744e-05,2]
[394517143,1763659838584,-746.61058539,5.744e-05,2]
[394517144,1763659838599,-418.70525394,5.744e-05,2]
[394517145,1763659838610,-2417.235055,5.744e-05,2]
[394517146,1763659838622,-1566.68091614,5.744e-05,2]
[394517147,1763659838658,151.0,0.00039042,50]
[394517148,1763659838690,500.0,0.00039042,30]
[394517149,1763659838725,151.0,0.00039042,50]
[394517150,1763659838757,500.0,0.00039042,30]
[394517151,1763659838789,372.195855,0.00039042,50]
[394517152,1763659838848,500.0,0.00039042,30]
[394517153,1763659838889,151.0,0.00039042,50]
[394517154,1763659838928,372.195855,0.00039042,50]
[394517155,1763659838977,500.0,0.00039042,30]
[394517156,1763659839029,372.195855,0.00039042,50]
[394517157,1763659839137,151.0,0.00039042,50]
[394517158,1763659839177,500.0,0.00039042,120]
[394517159,1763659839403,500.0,0.00039042,120]
[394517161,1763659839489,372.195855,0.00039042,50]
[394517167,1763659839683,500.0,0.00039042,120]
[394517171,1763659839817,372.195855,0.00039042,50]
[394517173,1763659839904,500.0,0.00039042,120]
[394517176,1763659840062,-43450.00000001,5.744e-05,2]
[394517177,1763659840076,-9118.47090141,5.744e-05,2]
[394517178,1763659840093,-533.64525147,5.744e-05,2]
[394517179,1763659840155,500.0,0.00039042,120]
[394517180,1763659840191,151.0,0.00039042,50]
[394517181,1763659840206,-735.17,5.744e-05,2]
[394517182,1763659840259,372.195855,0.00039042,50]
[394517183,1763659840275,-8175.77019512,5.744e-05,2]
[394517184,1763659840296,-10962.69,5.744e-05,2]
[394517186,1763659840318,-1757.62581845,5.744e-05,2]
[394517187,1763659840411,500.0,0.00039042,120]
[394517188,1763659840550,372.195859,0.00039042,50]
[394517189,1763659840790,500.0,0.00039042,120]
[394517190,1763659840841,236.07652,0.00039042,50]
[394517191,1763659841024,500.0,0.00039042,120]
[394517192,1763659841275,500.0,0.00039042,120]
[394517193,1763659841542,500.0,0.00039042,120]
[394517194,1763659841799,500.0,0.00039042,120]
[394517195,1763659842247,500.0,0.00039042,120]
[394517199,1763659842491,500.0,0.00039042,120]
[394517200,1763659842734,259.01390175,0.00039042,120]
[394517209,1763659844134,-2578.01999941,5.744e-05,2]
[394517211,1763659844146,-77219.61727342,5.744e-05,2]
[394517212,1763659844156,-150.0,5.792e-05,2]
[394517213,1763659844166,-1200.0,5.841e-05,2]
[394517214,1763659844175,-1321.7065885,5.848e-05,2]
[394517215,1763659844184,-852.9903173,5.851e-05,2]
[394517216,1763659844194,-6824.5773622,5.851e-05,2]
[394517217,1763659844204,-567.6524885,5.851e-05,2]
[394517218,1763659844214,-1548.0949194,5.851e-05,2]
[394517219,1763659844223,-300.0,5.957e-05,2]
[394517220,1763659844233,-300.0,5.957e-05,2]
[394517221,1763659844243,-300.0,5.959e-05,2]
[394517222,1763659844252,-300.0,5.959e-05,2]
[394517223,1763659844262,-300.0,5.967e-05,2]
[394517224,1763659844271,-300.0,5.967e-05,2]
[394517225,1763659844281,-300.0,5.967e-05,2]
[394517226,1763659844290,-300.0,5.967e-05,2]
[394517227,1763659844300,-362.98690802,6.016e-05,2]
[394517228,1763659844309,-420.0,6.316e-05,2]
[394517229,1763659844319,-1680.0,6.316e-05,2]
[394517230,1763659844329,-852.9903173,6.448e-05,2]
[394517231,1763659844340,-6824.5773622,6.499e-05,2]
[394517232,1763659844350,-567.6524885,6.727e-05,2]
[394517233,1763659844359,-1548.0949194,6.727e-05,2]
[394517234,1763659844369,-2489.35146579,6.729e-05,2]
[394517235,1763659844378,-1321.7065885,6.914e-05,2]
[394517236,1763659844387,-693.35640053,6.943e-05,2]
[394517237,1763659844397,-587.0,6.947e-05,2]
[394517238,1763659844407,-2351.0,6.947e-05,2]
[394517239,1763659844416,-852.9903173,7.045e-05,2]
[394517240,1763659844425,-2489.35146579,7.065e-05,2]
[394517241,1763659844435,-6824.5773622,7.147e-05,2]
[394517242,1763659844444,-2489.35146579,7.402e-05,2]
[394517243,1763659844454,-567.6524885,7.603e-05,2]
[394517244,1763659844463,-1548.0949194,7.603e-05,2]
[394517245,1763659844472,-823.0,7.642e-05,2]
[394517246,1763659844483,-3125.0,7.642e-05,2]
[394517247,1763659844492,-852.9903173,7.642e-05,2]
[394517248,1763659844502,-2489.35146579,7.739e-05,2]
[394517249,1763659844511,-177.0,7.792e-05,2]
[394517250,1763659844520,-6824.5773622,7.795e-05,2]
[394517251,1763659844530,-1321.7065885,7.98e-05,2]
[394517252,1763659844539,-2489.35146579,8.075e-05,2]
[394517253,1763659844549,-1152.0,8.406e-05,2]
[394517254,1763659844558,-2489.35146579,8.412e-05,2]
[394517255,1763659844568,-567.6524885,8.479e-05,2]
[394517256,1763659844578,-1548.0949194,8.479e-05,2]
[394517257,1763659844590,-2489.35146579,8.749e-05,2]
[394517258,1763659844600,-1321.7065885,9.046e-05,2]
[394517259,1763659844609,-2489.35146579,9.086e-05,2]
[394517260,1763659844619,-1613.0,9.247e-05,2]
[394517261,1763659844628,-2491.84081726,9.759e-05,2]
[394517262,1763659844637,-204.0,9.792e-05,2]
[394517263,1763659844646,-2258.0,0.00010172,2]
[394517264,1763659844654,-1467.4182242,0.00010959,2]
[394517265,1763659844664,-2822.0,0.00011189,2]
[394517266,1763659844673,-231.0,0.00011792,2]
[394517267,1763659844682,-2544.39696557,0.000129,2]
[394517268,1763659844692,-2544.39696556,0.000129,2]
[394517269,1763659844703,-501.08143425,0.00013673,2]
[394517270,1763659844714,-500.0,0.00013673,2]
[394517271,1763659844723,-500.0,0.00013673,2]
[394517272,1763659844733,-500.0,0.00013673,2]
[394517273,1763659844742,-500.0,0.00013673,2]
[394517274,1763659844751,-500.0,0.00013673,2]
[394517275,1763659844760,-500.0,0.00013673,2]
[394517276,1763659844770,-500.0,0.00013673,2]
[394517277,1763659844779,-360.12288902,0.00013673,2]
[394517278,1763659844787,-390.95187967,0.00013673,2]
[394517279,1763659844796,-500.0,0.00013698,2]
[394517280,1763659844805,-500.0,0.00013698,2]
[394517281,1763659844814,-500.0,0.00013698,2]
[394517282,1763659844823,-500.0,0.00013698,2]
[394517283,1763659844831,-500.0,0.00013698,2]
[394517284,1763659844844,-500.0,0.00013698,2]
[394517285,1763659844853,-500.0,0.00013698,2]
[394517286,1763659844862,-500.0,0.00013698,2]
[394517287,1763659844871,-500.0,0.00013698,2]
[394517288,1763659844881,-528.40005003,0.00013698,2]
[394517289,1763659844890,-596.30385303,0.00013698,2]
[394517290,1763659844900,-872.053613,0.00013699,2]
[394517292,1763659844910,-27859.036179,0.00013699,2]
[394517293,1763659844919,-690.403549,0.00013699,2]
[394517294,1763659844928,-674.1672,0.00013699,2]
[394517295,1763659844938,-258.0,0.00013792,2]
[394517296,1763659844947,-500.0,0.00014221,2]
[394517297,1763659844956,-500.0,0.00014221,2]
[394517298,1763659844965,-485.54152847,0.00014221,2]
[394517299,1763659844974,-1000.0,0.00014221,2]
[394517300,1763659844983,-526.32723554,0.00014221,2]
[394517301,1763659844992,-160.0,0.00014267,2]
[394517302,1763659845001,-288.9288,0.00014384,2]
[394517303,1763659845011,-151.0,0.000147,2]
[394517304,1763659845021,-219.62288868,0.00014768,2]
[394517305,1763659845030,-205.408793,0.00015068,2]
[394517306,1763659845040,-151.0,0.000152,2]
[394517307,1763659845052,-151.0,0.000152,2]
[394517308,1763659845062,-100000.0,0.00015612,2]
[394517309,1763659845071,-500.0,0.00015673,2]
[394517310,1763659845080,-500.0,0.00015673,2]
[394517311,1763659845092,-500.0,0.00015673,2]
[394517312,1763659845101,-693.35640053,0.00015703,2]
[394517313,1763659845111,-285.0,0.00015792,2]
[394517314,1763659845121,-204.54,0.00016123,30]
[394517315,1763659845131,-506.10959622,0.00016221,2]
[394517316,1763659845140,-638.41644065,0.00016221,2]
[394517317,1763659845149,-1000.0,0.00016221,2]
[394517318,1763659845159,-500.0,0.00016473,2]
[394517319,1763659845168,-500.85430439,0.00016473,2]
[394517320,1763659845177,-500.0,0.00016473,2]
[394517321,1763659845187,-500.0,0.00016473,2]
[394517322,1763659845195,-1485.42874668,0.00016768,2]
[394517323,1763659845205,-414.0,0.00016867,2]
[394517324,1763659845214,-1000.0,0.00017021,2]
[394517325,1763659845223,-1000.0,0.00017021,2]
[394517326,1763659845233,-272.72,0.00017363,30]
[394517327,1763659845243,-187.1986547,0.00017568,2]
[394517328,1763659845252,-1557.56771256,0.00017568,2]
[394517329,1763659845262,-312.0,0.00017792,2]
[394517330,1763659845271,-361.0,0.00018036,2]
[394517331,1763659845280,-2544.39696556,0.00018164,2]
[394517332,1763659845290,-340.91,0.00018603,30]
[394517333,1763659845299,-376.97634298,0.00019643,2]
[394517334,1763659845309,-339.0,0.00019792,2]
[394517335,1763659845319,-409.09,0.00019843,30]
[394517336,1763659845327,-414.0,0.00019867,2]
[394517338,1763659845340,-690.403549,0.00020187,2]
[394517339,1763659845349,-872.053613,0.00020548,2]
[394517340,1763659845359,-168.0,0.00020931,2]
[394517341,1763659845368,-168.0,0.00021013,2]
[394517343,1763659845378,-477.27,0.00021084,30]
[394517345,1763659845387,-168.0,0.00021227,2]
[394517346,1763659845395,-168.0,0.00021329,2]
[394517347,1763659845404,-903.40468065,0.00021349,2]
[394517348,1763659845414,-262.2296535,0.00021349,2]
[394517350,1763659845423,-2812.6897487,0.00021349,2]
[394517352,1763659845431,-168.0,0.00021482,2]
[394517354,1763659845440,-366.0,0.00021792,2]
[394517356,1763659845449,-168.0,0.00021801,2]
[394517358,1763659845458,-168.0,0.0002185,2]
[394517359,1763659845466,-300.0,0.00021918,2]
[394517361,1763659845475,-500.49664526,0.00021973,2]
[394517364,1763659845484,-500.0,0.00021973,2]
[394517366,1763659845492,-168.0,0.00022029,2]
[394517369,1763659845502,-168.0,0.00022086,2]
[394517372,1763659845512,-180.28,0.000221,14]
[394517374,1763659845521,-271.01240845,0.000221,2]
[394517377,1763659845539,-423.25464821,0.000221,2]
[394517378,1763659845550,-27410.89294334,0.000221,2]
[394517379,1763659845559,-500.0,0.000221,2]
[394517380,1763659845568,-168.0,0.00022228,2]
[394517381,1763659845585,-168.0,0.00022241,2]
[394517382,1763659845596,-168.0,0.00022252,2]
[394517383,1763659845605,-168.0,0.00022321,2]
[394517384,1763659845615,-545.45,0.00022324,30]
[394517385,1763659845624,-293.08424051,0.00022449,30]
[394517386,1763659845634,-168.0,0.00022474,2]
[394517387,1763659845643,-281.25,0.00022475,30]
[394517388,1763659845652,-510.24,0.000225,7]
[394517389,1763659845661,-511.56600794,0.00022648,2]
[394517391,1763659845671,-168.0,0.00022695,2]
[394517393,1763659845681,-600.0,0.0002274,2]
[394517395,1763659845690,-168.0,0.00022849,2]
[394517397,1763659845699,-316.752,0.00022867,2]
[394517399,1763659845709,-168.0,0.00022873,2]
[394517401,1763659845718,-678.55741736,0.00022959,2]
[394517403,1763659845727,-168.0,0.00022997,2]
[394517405,1763659845736,-296.17649666,0.00023,117]
[394517407,1763659845745,-6328.55193458,0.00023035,2]
[394517409,1763659845755,-168.0,0.00023125,2]
[394517411,1763659845764,-309.10678377,0.00023512,2]
[394517413,1763659845773,-164.349601,0.0002355,2]
[394517415,1763659845783,-900.0,0.00023562,2]
[394517417,1763659845792,-613.63,0.00023564,30]
[394517418,1763659845801,-299.0377609,0.00023792,2]
[394517419,1763659845811,-500.0,0.00023973,2]
[394517420,1763659845820,-500.0,0.00023973,2]
[394517421,1763659845829,-35610.3500142,0.00024142,2]
[394517422,1763659845841,-2032.66053147,0.00024248,2]
[394517423,1763659845850,-250.58764717,0.00024384,2]
[394517424,1763659845860,-2544.39696556,0.000244,2]
[394517425,1763659845869,-693.35640053,0.00024464,2]
[394517426,1763659845879,-200.0,0.00024658,2]
[394517427,1763659845889,-151.0,0.00024658,7]
[394517428,1763659845898,-151.0,0.00024658,7]
[394517429,1763659845907,-151.0,0.00024658,7]
[394517430,1763659845917,-151.0,0.00024658,7]
[394517431,1763659845926,-187.904655,0.00024658,7]
[394517432,1763659845936,-151.0,0.00024658,7]
[394517433,1763659845945,-151.0,0.00024658,7]
[394517434,1763659845955,-151.0,0.00024658,7]
[394517435,1763659845964,-32.47246148,0.00024658,7]
[394517436,1763659846275,-118.52753852,0.00024658,7]